fUSD/lending_fUSD_20240930
["ID","MTS","AMOUNT","RATE_DAILY","PERIOD"]
[339516126,1727671872191,-500.0,0.00012493,2]
[339516127,1727671872202,-1947.04,0.00012493,2]
[339516128,1727671872213,-761.62,0.00012493,2]
[339516129,1727671872223,-500.0,0.00012493,2]
[339516130,1727671872232,-1400.3,0.00012493,2]
[339516131,1727671872242,-761.62,0.00012493,2]
[339516132,1727671872251,-1947.04,0.00012493,2]
[339516133,1727671872262,-1400.3,0.00012493,2]
[339516134,1727671872273,-500.0,0.00012493,2]
[339516135,1727671872282,-761.62,0.00012493,2]
[339516136,1727671872293,-1947.04,0.00012493,2]
[339516137,1727671872302,-500.0,0.00012493,2]
[339516138,1727671872312,-1400.3,0.00012493,2]
[339516139,1727671872322,-761.62,0.00012493,2]
[339516140,1727671872332,-1947.04,0.00012493,2]
[339516141,1727671872342,-500.0,0.00012493,2]
[339516142,1727671872351,-1400.3,0.00012493,2]
[339516143,1727671872360,-1947.04,0.00012493,2]
[339516144,1727671872370,-761.62,0.00012493,2]
[339516145,1727671872381,-500.0,0.00012493,2]
[339516146,1727671872390,-1400.3,0.00012493,2]
[339516147,1727671872400,-761.62,0.00012493,2]
[339516148,1727671872410,-1947.04,0.00012493,2]
[339516149,1727671872420,-1400.3,0.00012493,2]
[339516150,1727671872429,-761.62,0.00012493,2]
[339516151,1727671872440,-500.0,0.00012493,2]
[339516152,1727671872450,-1809.66643927,0.00012493,2]
[339516153,1727671872474,-137.37356073,0.00012493,2]
[339516154,1727671872484,-761.62,0.00012493,2]
[339516155,1727671872494,-1069.40742199,0.00012493,2]
[339516156,1727671872507,-330.89257801,0.00012493,2]
[339516157,1727671872517,-296.70156077,0.00012493,2]
[339516158,1727671872529,-869.95370905,0.00012493,2]
[339516159,1727671872541,-478.6711612,0.00012493,2]
[339516160,1727671872980,-301.90794157,0.00012493,2]
[339516161,1727671872990,-1400.3,0.00012493,2]
[339516162,1727671872999,-500.0,0.00012493,2]
[339516163,1727671873009,-1400.3,0.00012493,2]
[339516164,1727671873018,-761.70654554,0.00012493,2]
[339516165,1727671873028,-506.79591803,0.00012493,2]
[339516166,1727671873037,-1400.3,0.00012493,2]
[339516167,1727671873046,-1400.3,0.00012493,2]
[339516168,1727671873056,-500.0,0.00012493,2]
[339516169,1727671873065,-1400.3,0.00012493,2]
[339516170,1727671873075,-500.0,0.00012493,2]
[339516171,1727671873084,-1400.3,0.00012493,2]
[339516172,1727671873093,-1400.32079369,0.00012493,2]
[339516173,1727671873102,-500.0,0.00012493,2]
[339516174,1727671873112,-500.0,0.00012493,2]
[339516175,1727671873121,-500.0,0.00012493,2]
[339516176,1727671873131,-500.0,0.00012493,2]
[339516177,1727671873140,-3254.16,0.00012493,2]
[339516178,1727671873149,-500.0,0.00012493,2]
[339516179,1727671873160,-500.0,0.00012493,2]
[339516180,1727671873169,-500.0,0.00012493,2]
[339516181,1727671873179,-3254.16,0.00012493,2]
[339516182,1727671873188,-500.0,0.00012493,2]
[339516183,1727671873197,-500.0,0.00012493,2]
[339516184,1727671873206,-500.0,0.00012493,2]
[339516185,1727671873215,-3254.16,0.00012493,2]
[339516186,1727671873224,-1021.4,0.00012493,2]
[339516187,1727671873233,-500.0,0.00012493,2]
[339516188,1727671873242,-500.0,0.00012493,2]
[339516189,1727671873252,-500.0,0.00012493,2]
[339516190,1727671873261,-3254.16,0.00012493,2]
[339516191,1727671873271,-500.0,0.00012493,2]
[339516192,1727671873280,-500.0,0.00012493,2]
[339516193,1727671873289,-500.0,0.00012493,2]
[339516194,1727671873298,-3254.16,0.00012493,2]
[339516195,1727671873307,-1021.4,0.00012493,2]
[339516196,1727671873317,-500.0,0.00012493,2]
[339516197,1727671873327,-500.0,0.00012493,2]
[339516198,1727671873337,-3254.16,0.00012493,2]
[339516199,1727671873346,-500.0,0.00012493,2]
[339516200,1727671873355,-1021.4,0.00012493,2]
[339516201,1727671873366,-500.0,0.00012493,2]
[339516202,1727671873376,-500.0,0.00012493,2]
[339516203,1727671873386,-3254.16,0.00012493,2]
[339516204,1727671873395,-500.0,0.00012493,2]
[339516205,1727671873404,-347.00238313,0.00012493,2]
[339516206,1727671873414,-3254.16,0.00012493,2]
[339516207,1727671873423,-1021.4,0.00012493,2]
[339516208,1727671873433,-596.21223045,0.00012493,2]
[339516209,1727671873444,-3254.16,0.00012493,2]
[339516210,1727671873453,-3254.16,0.00012493,2]
[339516211,1727671873463,-1021.4,0.00012493,2]
[339516212,1727671873472,-3254.16,0.00012493,2]
[339516213,1727671873481,-1021.4,0.00012493,2]
[339516214,1727671873491,-3254.16,0.00012493,2]
[339516215,1727671873500,-1021.4,0.00012493,2]
[339516216,1727671873510,-500.0,0.00012493,2]
[339516217,1727671873520,-3254.16,0.00012493,2]
[339516218,1727671873529,-1021.4,0.00012493,2]
[339516219,1727671873538,-500.0,0.00012493,2]
[339516220,1727671873548,-3254.16,0.00012493,2]
[339516221,1727671873557,-1021.4,0.00012493,2]
[339516222,1727671873566,-500.0,0.00012493,2]
[339516223,1727671873576,-3254.16,0.00012493,2]
[339516224,1727671873585,-1021.4,0.00012493,2]
[339516225,1727671873594,-500.0,0.00012493,2]
[339516226,1727671873603,-3254.16,0.00012493,2]
[339516227,1727671873613,-886.84,0.00012493,2]
[339516228,1727671873622,-500.0,0.00012493,2]
[339516229,1727671873632,-500.0,0.00012493,2]
[339516230,1727671873641,-1021.4,0.00012493,2]
[339516231,1727671873650,-3254.16,0.00012493,2]
[339516232,1727671873660,-886.84,0.00012493,2]
[339516233,1727671873669,-500.0,0.00012493,2]
[339516234,1727671873678,-3254.16,0.00012493,2]
[339516235,1727671873687,-886.84,0.00012493,2]
[339516236,1727671873697,-500.0,0.00012493,2]
[339516237,1727671873706,-1021.4,0.00012493,2]
[339516238,1727671873715,-500.0,0.00012493,2]
[339516239,1727671873724,-3254.16,0.00012493,2]
[339516240,1727671873734,-886.84,0.00012493,2]
[339516241,1727671873744,-500.0,0.00012493,2]
[339516242,1727671873754,-1021.4,0.00012493,2]
[339516243,1727671873763,-500.0,0.00012493,2]
[339516244,1727671873772,-3254.16,0.00012493,2]
[339516245,1727671873782,-886.84,0.00012493,2]
[339516246,1727671873791,-500.0,0.00012493,2]
[339516247,1727671873801,-1021.4,0.00012493,2]
[339516248,1727671873810,-500.0,0.00012493,2]
[339516249,1727671873819,-886.84,0.00012493,2]
[339516250,1727671873829,-1021.4,0.00012493,2]
[339516251,1727671873839,-500.0,0.00012493,2]
[339516252,1727671873848,-3254.16,0.00012493,2]
[339516253,1727671873857,-886.84,0.00012493,2]
[339516254,1727671873867,-500.0,0.00012493,2]
[339516255,1727671873876,-500.0,0.00012493,2]
[339516256,1727671873885,-1021.4,0.00012493,2]
[339516257,1727671873899,-3254.16,0.00012493,2]
[339516258,1727671873908,-558.41285386,0.00012493,2]
[339516259,1727671873917,-886.84,0.00012493,2]
[339516260,1727671873927,-1021.4,0.00012493,2]
[339516261,1727671873938,-3254.16,0.00012493,2]
[339516262,1727671873947,-500.0,0.00012493,2]
[339516263,1727671873956,-886.84,0.00012493,2]
[339516264,1727671873965,-1021.4,0.00012493,2]
[339516265,1727671873976,-3254.32122264,0.00012493,2]
[339516266,1727671873986,-500.0,0.00012493,2]
[339516267,1727671873995,-886.84,0.00012493,2]
[339516268,1727671874004,-1021.4,0.00012493,2]
[339516269,1727671874014,-500.0,0.00012493,2]
[339516270,1727671874023,-886.84,0.00012493,2]
[339516271,1727671874032,-1021.4,0.00012493,2]
[339516272,1727671874041,-500.0,0.00012493,2]
[339516273,1727671874050,-886.84,0.00012493,2]
[339516274,1727671874059,-1021.4,0.00012493,2]
[339516275,1727671874069,-500.0,0.00012493,2]
[339516276,1727671874079,-886.84,0.00012493,2]
[339516277,1727671874088,-1021.4,0.00012493,2]
[339516278,1727671874097,-640.29701069,0.00012493,2]
[339516279,1727671874106,-886.84,0.00012493,2]
[339516280,1727671874115,-1021.4,0.00012493,2]
[339516281,1727671874125,-886.84,0.00012493,2]
[339516282,1727671874134,-1021.57870663,0.00012493,2]
[339516283,1727671874144,-886.84,0.00012493,2]
[339516284,1727671874154,-886.84,0.00012493,2]
[339516285,1727671874163,-886.84,0.00012493,2]
[339516286,1727671874172,-886.84,0.00012493,2]
[339516287,1727671874181,-886.84,0.00012493,2]
[339516288,1727671874190,-886.84,0.00012493,2]
[339516289,1727671874199,-886.84,0.00012493,2]
[339516290,1727671874209,-14097.11,0.00012493,2]
[339516291,1727671874218,-886.84,0.00012493,2]
[339516292,1727671874227,-14097.11,0.00012493,2]
[339516293,1727671874236,-886.87690485,0.00012493,2]
[339516294,1727671874245,-1952.03082923,0.00012493,2]
[339516295,1727671874314,-3635.87463981,0.00012493,2]
[339516296,1727671925999,-602.0,0.00012493,2]
[339516297,1727671926010,-8509.20453096,0.00012493,2]
[339516298,1727671926019,-14097.11,0.00012493,2]
[339516299,1727671926029,-6650.7,0.00012493,2]
[339516300,1727671926039,-14097.11,0.00012493,2]
[339516301,1727671926048,-3368.30836904,0.00012493,2]
[339516302,1727671926337,-1458.29861738,0.00012493,2]
[339516303,1727671928144,1050.0,0.0001,2]
[339516304,1727671929446,-174.03,0.00011702,2]
[339516305,1727671929470,-3854.9145,0.0001239,2]
[339516306,1727671929495,-500.0,0.00012473,2]
[339516307,1727671929517,-1915.43837716,0.00012492,2]
[339516308,1727671929540,-150.0,0.00012492,2]
[339516309,1727671929562,-500.0,0.00012493,2]
[339516310,1727671929584,-500.0,0.00012493,2]
[339516311,1727671929606,-500.0,0.00012493,2]
[339516312,1727671929629,-500.0,0.00012493,2]
[339516313,1727671929652,-500.0,0.00012493,2]
[339516314,1727671929675,-500.0,0.00012493,2]
[339516315,1727671929697,-500.0,0.00012493,2]
[339516316,1727671929720,-504.15307018,0.00012493,2]
[339516317,1727671929742,-500.0,0.00012493,2]
[339516318,1727671929764,-500.0,0.00012493,2]
[339516319,1727671929785,-571.42816745,0.00012493,2]
[339516320,1727671929806,-500.0,0.00012493,2]
[339516321,1727671929829,-500.0,0.00012493,2]
[339516322,1727671929852,-500.0,0.00012493,2]
[339516323,1727671929875,-500.0,0.00012493,2]
[339516324,1727671929897,-502.90531074,0.00012493,2]
[339516325,1727671929923,-500.0,0.00012493,2]
[339516326,1727671929946,-500.0,0.00012493,2]
[339516327,1727671929968,-500.0,0.00012493,2]
[339516328,1727671929990,-542.98535748,0.00012493,2]
[339516329,1727671930012,-500.0,0.00012493,2]
[339516330,1727671930034,-500.0,0.00012493,2]
[339516331,1727671930056,-500.0,0.00012493,2]
[339516332,1727671930078,-500.0,0.00012493,2]
[339516333,1727671930100,-1756.6,0.00012493,2]
[339516334,1727671930124,-217.9293921,0.00012493,2]
[339516335,1727671930146,-1756.6,0.00012493,2]
[339516336,1727671930168,-1756.6,0.00012493,2]
[339516337,1727671930190,-500.0,0.00012493,2]
[339516338,1727671930212,-1756.6,0.00012493,2]
[339516339,1727671930235,-500.0,0.00012493,2]
[339516340,1727671930256,-502.94596897,0.00012493,2]
[339516341,1727671930279,-500.0,0.00012493,2]
[339516342,1727671930301,-1756.6,0.00012493,2]
[339516343,1727671930324,-500.0,0.00012493,2]
[339516344,1727671930346,-500.0,0.00012493,2]
[339516345,1727671930369,-1756.6,0.00012493,2]
[339516346,1727671930392,-500.0,0.00012493,2]
[339516347,1727671930414,-1756.6,0.00012493,2]
[339516348,1727671930436,-500.0,0.00012493,2]
[339516349,1727671930458,-500.0,0.00012493,2]
[339516350,1727671930480,-1756.6,0.00012493,2]
[339516351,1727671930502,-500.27415182,0.00012493,2]
[339516352,1727671930525,-500.0,0.00012493,2]
[339516353,1727671930547,-1710.1957041,0.00012493,2]
[339516354,1727671933771,-500.0,0.00011164,2]
[339516355,1727671933792,-250.0,0.00011609,2]
[339516356,1727671933813,-300.0,0.00012491,2]
[339516357,1727671933834,-500.0,0.00012493,2]
[339516358,1727671933855,-500.0,0.00012493,2]
[339516359,1727671933877,-550.54,0.00012493,2]
[339516360,1727671933899,-500.0,0.00012493,2]
[339516361,1727671933928,-550.54,0.00012493,2]
[339516362,1727671933949,-500.0,0.00012493,2]
[339516363,1727671933970,-500.0,0.00012493,2]
[339516364,1727671933996,-500.0,0.00012493,2]
[339516365,1727671934018,-500.0,0.00012493,2]
[339516366,1727671934041,-500.0,0.00012493,2]
[339516367,1727671934062,-550.54,0.00012493,2]
[339516368,1727671934084,-500.0,0.00012493,2]
[339516369,1727671934105,-500.0,0.00012493,2]
[339516370,1727671934130,-550.54,0.00012493,2]
[339516371,1727671934152,-500.0,0.00012493,2]
[339516372,1727671934173,-500.0,0.00012493,2]
[339516373,1727671934195,-550.54,0.00012493,2]
[339516374,1727671934217,-500.0,0.00012493,2]
[339516375,1727671934238,-500.0,0.00012493,2]
[339516376,1727671934260,-500.0,0.00012493,2]
[339516377,1727671934283,-550.54,0.00012493,2]
[339516378,1727671934305,-500.0,0.00012493,2]
[339516379,1727671934328,-500.0,0.00012493,2]
[339516380,1727671934349,-550.54,0.00012493,2]
[339516381,1727671934371,-500.0,0.00012493,2]
[339516382,1727671934393,-500.0,0.00012493,2]
[339516383,1727671934414,-500.0,0.00012493,2]
[339516384,1727671934436,-550.54,0.00012493,2]
[339516385,1727671934456,-500.0,0.00012493,2]
[339516386,1727671934478,-500.0,0.00012493,2]
[339516387,1727671934500,-500.0,0.00012493,2]
[339516388,1727671934524,-550.54,0.00012493,2]
[339516389,1727671934548,-500.0,0.00012493,2]
[339516390,1727671934569,-500.0,0.00012493,2]
[339516391,1727671934590,-500.0,0.00012493,2]
[339516392,1727671934615,-550.54,0.00012493,2]
[339516393,1727671934638,-500.0,0.00012493,2]
[339516394,1727671934661,-500.0,0.00012493,2]
[339516395,1727671934684,-500.0,0.00012493,2]
[339516396,1727671934705,-550.54,0.00012493,2]
[339516397,1727671934728,-500.0,0.00012493,2]
[339516398,1727671934751,-500.0,0.00012493,2]
[339516399,1727671934774,-439.31422439,0.00012493,2]
[339516400,1727671934797,-550.54,0.00012493,2]
[339516401,1727671934823,-500.0,0.00012493,2]
[339516402,1727671934845,-500.0,0.00012493,2]
[339516403,1727671934868,-550.54,0.00012493,2]
[339516404,1727671934890,-500.0,0.00012493,2]
[339516405,1727671934915,-500.0,0.00012493,2]
[339516406,1727671934937,-500.0,0.00012493,2]
[339516407,1727671934959,-550.54,0.00012493,2]
[339516408,1727671934980,-565.90678457,0.00012493,2]
[339516409,1727671935002,-500.0,0.00012493,2]
[339516410,1727671935025,-550.54,0.00012493,2]
[339516411,1727671935048,-500.0,0.00012493,2]
[339516412,1727671935074,-550.54,0.00012493,2]
[339516413,1727671935099,-500.0,0.00012493,2]
[339516414,1727671935122,-550.54,0.00012493,2]
[339516415,1727671935144,-550.54,0.00012493,2]
[339516416,1727671935168,-500.0,0.00012493,2]
[339516417,1727671935189,-550.54,0.00012493,2]
[339516418,1727671935402,-558.099601,0.00012493,2]
[339516419,1727671935428,-550.54,0.00012493,2]
[339516420,1727671935452,-550.54,0.00012493,2]
[339516421,1727671935475,-550.54,0.00012493,2]
[339516422,1727671935497,-550.54,0.00012493,2]
[339516423,1727671935520,-550.67622938,0.00012493,2]
[339516424,1727671935543,-500.0,0.00012493,2]
[339516425,1727671935568,-500.0,0.00012493,2]
[339516426,1727671935590,-500.0,0.00012493,2]
[339516427,1727671935612,-500.0,0.00012493,2]
[339516428,1727671935634,-500.0,0.00012493,2]
[339516429,1727671935657,-500.0,0.00012493,2]
[339516430,1727671935680,-500.0,0.00012493,2]
[339516431,1727671935702,-500.0,0.00012493,2]
[339516432,1727671935725,-373.58316066,0.00012493,2]
[339516433,1727671935765,-146.60915893,0.00012493,2]
[339516434,1727671935787,-500.0,0.00012493,2]
[339516435,1727671935810,-500.0,0.00012493,2]
[339516436,1727671935833,-500.0,0.00012493,2]
[339516437,1727671935855,-500.0,0.00012493,2]
[339516438,1727671935878,-500.0,0.00012493,2]
[339516439,1727671935900,-500.0,0.00012493,2]
[339516440,1727671935926,-500.0,0.00012493,2]
[339516441,1727671935948,-500.0,0.00012493,2]
[339516442,1727671935972,-1175.95,0.00012493,2]
[339516443,1727671935996,-1175.95,0.00012493,2]
[339516444,1727671936018,-500.0,0.00012493,2]
[339516445,1727671936041,-1175.95,0.00012493,2]
[339516446,1727671936063,-500.0,0.00012493,2]
[339516447,1727671936086,-1175.95,0.00012493,2]
[339516448,1727671936109,-500.0,0.00012493,2]
[339516449,1727671936132,-500.0,0.00012493,2]
[339516450,1727671936156,-1175.95,0.00012493,2]
[339516451,1727671936178,-500.0,0.00012493,2]
[339516452,1727671936200,-500.0,0.00012493,2]
[339516453,1727671936222,-500.0,0.00012493,2]
[339516454,1727671936244,-1175.95,0.00012493,2]
[339516455,1727671936266,-500.0,0.00012493,2]
[339516456,1727671936287,-500.0,0.00012493,2]
[339516457,1727671936309,-500.0,0.00012493,2]
[339516458,1727671936332,-1175.95,0.00012493,2]
[339516459,1727671936354,-500.0,0.00012493,2]
[339516460,1727671936375,-500.0,0.00012493,2]
[339516461,1727671936397,-500.0,0.00012493,2]
[339516462,1727671936420,-1175.95,0.00012493,2]
[339516463,1727671936441,-500.0,0.00012493,2]
[339516464,1727671936463,-500.0,0.00012493,2]
[339516465,1727671936486,-384.16089736,0.00012493,2]
[339516466,1727671936508,-1175.95,0.00012493,2]
[339516467,1727671936530,-500.0,0.00012493,2]
[339516468,1727671936552,-506.04130001,0.00012493,2]
[339516469,1727671936575,-1175.95,0.00012493,2]
[339516470,1727671936598,-500.0,0.00012493,2]
[339516471,1727671936621,-1175.95,0.00012493,2]
[339516472,1727671936643,-500.0,0.00012493,2]
[339516473,1727671936665,-1175.95,0.00012493,2]
[339516474,1727671936687,-574.51739546,0.00012493,2]
[339516475,1727671936711,-1175.95,0.00012493,2]
[339516476,1727671936734,-1175.95,0.00012493,2]
[339516477,1727671936756,-1175.95,0.00012493,2]
[339516478,1727671936777,-501.47222994,0.00012493,2]
[339516479,1727671936799,-1175.95,0.00012493,2]
[339516480,1727671936821,-1175.95,0.00012493,2]
[339516481,1727671936843,-500.0,0.00012493,2]
[339516482,1727671936865,-1175.95,0.00012493,2]
[339516483,1727671936888,-500.0,0.00012493,2]
[339516484,1727671936912,-500.0,0.00012493,2]
[339516485,1727671936934,-1175.95,0.00012493,2]
[339516486,1727671936957,-500.0,0.00012493,2]
[339516487,1727671936978,-500.0,0.00012493,2]
[339516488,1727671937001,-244.1490183,0.00012493,2]
[339516489,1727671940631,1200.00000004,9e-05,2]
[339516490,1727671946473,1200.00000004,9e-05,3]
[339516491,1727671954199,1200.00000004,9e-05,4]
[339516492,1727671959979,-3311.0122,0.00011243,2]
[339516493,1727671960004,-250.0,0.00011732,2]
[339516494,1727671960027,-492.802,0.0001239,2]
[339516495,1727671960050,-537.0,0.00012493,2]
[339516496,1727671960075,-92327.1858,0.00012493,2]
[339516497,1727671972942,1045.72322781,9.5e-05,2]
[339516498,1727672052391,242.83145455,0.00015,30]
[339516500,1727672316095,1408.43518259,9.517e-05,2]
[339516501,1727672376476,967.93633078,9.226e-05,2]
[339516502,1727672562587,764.5,8.51e-05,2]
[339516503,1727672710906,2000.0,0.00015,30]
[339516510,1727672942771,176.43,8.291e-05,2]
[339516520,1727673032247,-157.73970547,0.00010125,2]
[339516521,1727673032257,-392.27306213,0.00010225,2]
[339516522,1727673032303,-2946.57874193,0.00010225,2]
[339516523,1727673032316,-340.28165674,0.00010225,2]
[339516524,1727673032327,-4611.37685154,0.00010225,2]
[339516525,1727673032338,-1692.91921981,0.0001023,2]
[339516526,1727673032366,-655.60712406,0.0001023,2]
[339516527,1727673032377,-640.9,0.0001023,2]
[339516530,1727673033945,-5301.08396845,0.0001023,2]
[339516531,1727673033955,-8290.51031232,0.00010234,2]
[339516532,1727673033965,-200.0,0.00010325,2]
[339516533,1727673033974,-170.41,0.00010334,2]
[339516534,1727673033984,-224.66,0.00010356,2]
[339516535,1727673033995,-150.0,0.00010375,2]
[339516536,1727673034004,-12087.77477684,0.00010375,2]
[339516537,1727673034017,-3834.18185265,0.00010375,2]
[339516538,1727673034029,-8630.5353258,0.00010375,2]
[339516539,1727673034041,-263.99149982,0.00010375,2]
[339516540,1727673034117,-1167.26,0.00010375,2]
[339516541,1727673034129,-440.57660707,0.00010375,2]
[339516556,1727673040426,-10492.08993782,0.00010375,2]
[339516557,1727673040436,-1454.30231161,0.00010376,2]
[339516667,1727673043585,-2192.83589893,0.00010376,2]
[339516668,1727673043597,-20252.86178946,0.00010376,2]
[339516669,1727673043606,-2717.28,0.00010396,2]
[339516670,1727673043615,-498.01,0.00010402,2]
[339516671,1727673043625,-250.0,0.00010428,2]
[339516672,1727673043635,-1632.89,0.00010511,2]
[339516673,1727673043644,-250.0,0.00010531,2]
[339516674,1727673043654,-247.08,0.00010616,2]
[339516675,1727673043663,-764.5,0.00010774,2]
[339516676,1727673043672,-175.23,0.00010959,2]
[339516677,1727673043682,-1500.0,0.00010959,2]
[339516678,1727673043692,-904.11,0.00010959,2]
[339516679,1727673043702,-181.23,0.00010959,2]
[339516680,1727673043711,-250.0,0.00010959,2]
[339516681,1727673043721,-500.0,0.00011164,2]
[339516682,1727673043730,-500.0,0.00011164,2]
[339516683,1727673043740,-150.0,0.00011219,2]
[339516684,1727673043750,-150.0,0.00011219,2]
[339516685,1727673043759,-150.08567351,0.00011219,2]
[339516686,1727673043772,-150.08597994,0.00011219,2]
[339516687,1727673043781,-150.0,0.00011219,2]
[339516688,1727673043792,-150.0,0.00011219,2]
[339516689,1727673043804,-150.11004349,0.00011219,2]
[339516690,1727673043814,-150.18566845,0.00011219,2]
[339516691,1727673043825,-150.10107823,0.00011219,2]
[339516692,1727673043834,-150.0,0.00011219,2]
[339516693,1727673043844,-150.0,0.00011219,2]
[339516694,1727673043854,-150.34728085,0.00011219,2]
[339516695,1727673043863,-150.0,0.00011235,2]
[339516697,1727673043873,-150.0,0.00011236,2]
[339516698,1727673043883,-150.0,0.0001125,2]
[339516699,1727673043892,-150.0,0.00011251,2]
[339516700,1727673043902,-150.0,0.00011254,2]
[339516701,1727673043911,-150.0,0.00011265,2]
[339516702,1727673043920,-2572.4463,0.00011265,2]
[339516703,1727673043930,-150.0,0.00011271,2]
[339516704,1727673043940,-150.0,0.00011271,2]
[339516705,1727673043950,-150.0,0.00011281,2]
[339516706,1727673043959,-150.0,0.00011283,2]
[339516707,1727673043968,-150.0,0.00011288,2]
[339516708,1727673043978,-150.0,0.00011296,2]
[339516709,1727673043988,-150.0,0.00011306,2]
[339516710,1727673043997,-150.0,0.00011312,2]
[339516711,1727673044007,-457.94878853,0.00011314,2]
[339516712,1727673044016,-150.0,0.00011315,2]
[339516713,1727673044026,-150.0,0.00011323,2]
[339516714,1727673044036,-150.0,0.00011323,2]
[339516715,1727673044045,-150.0,0.00011327,2]
[339516716,1727673044054,-150.0,0.0001134,2]
[339516717,1727673044064,-150.0,0.00011342,2]
[339516718,1727673044073,-150.0,0.00011347,2]
[339516719,1727673044083,-150.0,0.00011358,2]
[339516720,1727673044094,-150.0,0.00011358,2]
[339516721,1727673044105,-150.0,0.00011373,2]
[339516722,1727673044115,-150.0,0.00011375,2]
[339516723,1727673044125,-150.0,0.00011375,2]
[339516724,1727673044134,-150.0,0.00011379,2]
[339516725,1727673044145,-150.0,0.00011388,2]
[339516726,1727673044154,-197.0,0.00011391,2]
[339516727,1727673044163,-150.0,0.00011392,2]
[339516728,1727673044173,-150.0,0.00011404,2]
[339516729,1727673044183,-150.0,0.0001141,2]
[339516730,1727673044192,-150.0,0.00011411,2]
[339516731,1727673044202,-275.64,0.00011414,2]
[339516732,1727673044211,-150.0,0.00011419,2]
[339516733,1727673044221,-150.0,0.00011427,2]
[339516734,1727673044231,-150.0,0.00011427,2]
[339516735,1727673044240,-150.0,0.00011435,2]
[339516736,1727673044251,-457.94878844,0.00011435,2]
[339516737,1727673044262,-150.0,0.00011443,2]
[339516738,1727673044276,-150.0,0.00011444,2]
[339516739,1727673044286,-150.0,0.0001145,2]
[339516740,1727673044295,-150.0,0.00011462,2]
[339516741,1727673044306,-150.0,0.00011465,2]
[339516742,1727673044315,-150.0,0.00011468,2]
[339516743,1727673044324,-150.0,0.00011475,2]
[339516744,1727673044334,-150.0,0.00011479,2]
[339516745,1727673044345,-150.0,0.00011479,2]
[339516746,1727673044355,-150.0,0.00011481,2]
[339516747,1727673044365,-150.0,0.00011496,2]
[339516748,1727673044374,-150.0,0.00011496,2]
[339516749,1727673044384,-904.11,0.00011507,2]
[339516750,1727673044393,-150.0,0.00011507,2]
[339516751,1727673044402,-150.0,0.00011512,2]
[339516752,1727673044411,-150.0,0.00011514,2]
[339516753,1727673044420,-150.0,0.00011527,2]
[339516754,1727673044429,-150.0,0.00011531,2]
[339516755,1727673044439,-150.0,0.00011531,2]
[339516756,1727673044448,-753.95,0.00011534,2]
[339516757,1727673044457,-150.0,0.00011539,2]
[339516758,1727673044467,-150.0,0.00011542,2]
[339516759,1727673044476,-150.0,0.00011548,2]
[339516760,1727673044485,-457.94878844,0.00011555,2]
[339516761,1727673044495,-150.0,0.00011558,2]
[339516762,1727673044505,-1346.49,0.00011559,2]
[339516763,1727673044514,-150.0,0.00011565,2]
[339516764,1727673044525,-150.0,0.00011571,2]
[339516765,1727673044534,-150.0,0.00011573,2]
[339516766,1727673044543,-150.0,0.00011583,2]
[339516767,1727673044552,-150.0,0.00011583,2]